[Event "48th Ciutat de Badalona Open 2024"]
[Site "Badalona"]
[Date "2024.08.10"]
[Round "9.10"]
[White "Lozano Ruiz, David"]
[Black "Weingarten, Phineas"]
[Result "1-0"]
[ECO "D46"]
[WhiteElo "1894"]
[BlackElo "1824"]
[Annotator "NA"]
[PlyCount "83"]
[EventDate "2024.07.29"]
[EventType "swiss"]
[EventCountry "ESP"]
[SourceTitle "playchess.com"]
[Source "ChessBase"]
[SourceQuality "1"]
[TimeControl "5400+30"]

1. d4 {[%emt 0:00:52]} d5 {[%emt 0:00:04]} 2. c4 {[%emt 0:00:03]} c6 {[%emt 0:00:02]} 3. Nf3 {[%emt 0:00:06]} Nf6 {[%emt 0:00:17]} 4. Nc3 {[%emt 0:00:06]} e6 {[%emt 0:00:24]} 5. e3 {[%emt 0:00:39]} Nbd7 {[%emt 0:00:52]} 6. Bd3 {[%emt 0:00:09]} Bd6 {[%emt 0:00:36]} 7. O-O {[%emt 0:01:35]} O-O {[%emt 0:00:41]} 8. Bd2 {[%emt 0:04:37]} Re8 {[%emt 0:06:46]} 9. cxd5 {[%emt 0:01:16]} exd5 {[%emt 0:00:50]} 10. Rb1 {[%emt 0:00:51]} Ne4 {[%emt 0:06:40]} 11. Qc2 {[%emt 0:00:20]} Ndf6 {[%emt 0:00:30]} 12. b4 {[%emt 0:01:42]} a6 {[%emt 0:09:53]} 13. a4 {[%emt 0:00:34]} Qe7 {[%emt 0:13:17]} 14. b5 {[%emt 0:03:46]} axb5 {[%emt 0:00:23]} 15. axb5 {[%emt 0:00:05]} Bg4 {[%emt 0:02:02]} 16. Be2 {[%emt 0:12:34]} Bf5 {[%emt 0:10:25]} 17. Bd3 {[%emt 0:02:30]} Nxc3 {[%emt 0:03:12]} 18. Bxc3 {[%emt 0:00:57]} Be4 {[%emt 0:01:35]} 19. Ne5 {[%emt 0:03:11]} cxb5 {[%emt 0:11:51]} 20. Rxb5 {[%emt 0:06:03]} Rec8 {[%emt 0:03:18]} 21. Rb3 {[%emt 0:04:45]} Bxe5 {[%emt 0:12:46]} 22. dxe5 {[%emt 0:01:03]} Bxd3 {[%emt 0:01:12]} 23. Qxd3 {[%emt 0:00:40]} Ne4 {[%emt 0:00:34]} 24. Bd4 {[%emt 0:03:02]} Ra2 {[%emt 0:04:15]} 25. Rb2 {[%emt 0:02:15]} Rca8 {[%emt 0:09:52]} 26. Qb3 {[%emt 0:05:50]} Nd2 {[%emt 0:00:30]} 27. Rxa2 {[%emt 0:00:20]} Rxa2 {[%emt 0:00:38]} 28. Qxa2 {[%emt 0:00:07]} Nxf1 {[%emt 0:00:13]} 29. Qa8+ {[%emt 0:00:08]} Qf8 {[%emt 0:00:04]} 30. Qxf8+ {[%emt 0:00:07]} Kxf8 {[%emt 0:00:01]} 31. Kxf1 {[%emt 0:00:13]} Ke7 {[%emt 0:00:03]} 32. Ke2 {[%emt 0:00:22]} g6 {[%emt 0:00:15]} 33. Kd3 {[%emt 0:00:11]} Kd7 {[%emt 0:00:03]} 34. Bc5 {[%emt 0:00:36]} Kc6 {[%emt 0:03:26]} 35. Kd4 {[%emt 0:00:22]} b6 {[%emt 0:00:00]} 36. Bf8 {[%emt 0:00:48]} h5 {[%emt 0:00:00]} 37. h4 {[%emt 0:00:10]} Kb5 {[%emt 0:00:00]} 38. Kxd5 {[%emt 0:00:08]} Ka4 {[%emt 0:00:00]} 39. e6 {[%emt 0:00:37]} fxe6+ {[%emt 0:00:00]} 40. Kxe6 {[%emt 0:00:02]} b5 {[%emt 0:03:00]} 41. Kf6 {[%emt 0:00:13]} b4 {[%emt 0:00:00]} 42. Bxb4 {[%emt 0:47:35]} 1-0